{"text_format":"3","workbook":"xlsx","n_sheets":2,"sheets":["Παρακολούθηση απώλειας βάρους","υπολογισμοί"],"not_rendered":{"charts":1,"defined_names":7},"read":"whole","date_system":"1900"}

{"sheet":"Παρακολούθηση απώλειας βάρους","index":0,"n_rows":129,"n_cols":11,"rows_kept":129,"merged":[[0,5,0,9],[1,6,3,9]]}
[null,"ΣΤΟΧΟΣ ΒΑΡΟΥΣ","ΠΡΟΒΟΛΗ ΓΡΑΦΗΜΑΤΟΣ",null,null," ΑΠΩΛΕΙΑ ΒΑΡΟΥΣ ΤΗΣ ΣΟΦΙΑΣ"]
[{"$nulls":6},"ΠΑΡΑΚΟΛΟΥΘΗΣΗ"]
[null,{"v":72,"d":"72.0"},"ΕΒΔΟΜΑΔΙΑΙΑ",{"$nulls":7}," "]
[]
[]
[{"$nulls":10}," "]
{"$rows_empty":18}
[null,"ΗΜΕΡΟΜΗΝΙΑ","ΒΑΡΟΣ"]
[null,"2012-11-30",{"v":76,"d":"76.0"}]
[null,"2012-12-07",{"v":76,"d":"76.0"}]
[null,"2012-12-14",77.6]
[null,"2012-12-21",76.5]
[null,"2012-12-28",76.1]
[null,"2013-01-04",{"v":74,"d":"74.0"}]
[null,"2013-01-11",{"v":73,"d":"73.0"}]
[null,"2013-01-18",{"v":72,"d":"72.0"}]
[null,"2013-01-25",{"v":72,"d":"72.0"}]
[null,"2013-02-01",{"v":73,"d":"73.0"}]
[null,"2013-02-08",{"v":74,"d":"74.0"}]
[null,"2013-02-15",{"v":75,"d":"75.0"}]
[null,"2013-02-22"]
[null,"2013-03-01"]
[null,"2013-03-08"]
[null,"2013-03-15"]
[null,"2013-03-22"]
[null,"2013-03-29"]
[null,"2013-04-05"]
[null,"2013-04-12"]
[null,"2013-04-19"]
[null,"2013-04-26"]
[null,"2013-05-03"]
[null,"2013-05-10"]
[null,"2013-05-17"]
[null,"2013-05-24"]
[null,"2013-05-31"]
[null,"2013-06-07"]
[null,"2013-06-14"]
[null,"2013-06-21"]
[null,"2013-06-28"]
[null,"2013-07-05"]
[null,"2013-07-12"]
[null,"2013-07-19"]
[null,"2013-07-26"]
[null,"2013-08-02"]
[null,"2013-08-09"]
[null,"2013-08-16"]
[null,"2013-08-23"]
[null,"2013-08-30"]
[null,"2013-09-06"]
[null,"2013-09-13"]
[null,"2013-09-20"]
[null,"2013-09-27"]
[null,"2013-10-04"]
[null,"2013-10-11"]
[null,"2013-10-18"]
[null,"2013-10-25"]
[null,"2013-11-01"]
[null,"2013-11-08"]
[null,"2013-11-15"]
[null,"2013-11-22"]
[null,"2013-11-29"]
[null,"2013-12-06"]
[null,"2013-12-13"]
[null,"2013-12-20"]
[null,"2013-12-27"]
[null,"2014-01-03"]
[null,"2014-01-10"]
[null,"2014-01-17"]
[null,"2014-01-24"]
[null,"2014-01-31"]
[null,"2014-02-07"]
[null,"2014-02-14"]
[null,"2014-02-21"]
[null,"2014-02-28"]
[null,"2014-03-07"]
[null,"2014-03-14"]
[null,"2014-03-21"]
[null,"2014-03-28"]
[null,"2014-04-04"]
[null,"2014-04-11"]
[null,"2014-04-18"]
[null,"2014-04-25"]
[null,"2014-05-02"]
[null,"2014-05-09"]
[null,"2014-05-16"]
[null,"2014-05-23"]
[null,"2014-05-30"]
[null,"2014-06-06"]
[null,"2014-06-13"]
[null,"2014-06-20"]
[null,"2014-06-27"]
[null,"2014-07-04"]
[null,"2014-07-11"]
[null,"2014-07-18"]
[null,"2014-07-25"]
[null,"2014-08-01"]
[null,"2014-08-08"]
[null,"2014-08-15"]
[null,"2014-08-22"]
[null,"2014-08-29"]
[null,"2014-09-05"]
[null,"2014-09-12"]
[null,"2014-09-19"]
[null,"2014-09-26"]
[null,"2014-10-03"]
[null,"2014-10-10"]
[null,"2014-10-17"]
[null,"2014-10-24"]
[null,"2014-10-31"]
[null,"2014-11-07"]
[null,"2014-11-14"]
[null,"2014-11-21"]

{"sheet":"υπολογισμοί","index":1,"n_rows":108,"n_cols":17,"rows_kept":108,"hidden":true}
["***  Φύλλο που πρέπει να παραμείνει κρυφό ***"]
[]
[{"$f":"COUNTIF(A5:A108,FALSE)","v":13},"Περίοδοι","Τιμές",{"$nulls":3},{"$f":"COUNTIF(H5:H28,\">\"&0)","v":4},"Περίοδοι",null,"Τιμές"]
[null,"Εβδομάδα",null,null,true,null,null,"Μήνας","ΤΕΛΟΣ ΜΗΝΑ"]
[{"$f":"IF(('Παρακολούθηση απώλειας βάρους'!C26=0)*('Παρακολούθηση απώλειας βάρους'!C25=0),TRUE)","v":false},{"$f":"IF(A5,0,IF('Παρακολούθηση απώλειας βάρους'!B26=0,'Παρακολούθηση απώλειας βάρους'!B25+5,'Παρακολούθηση απώλειας βάρους'!B26))","v":"2012-11-30"},{"$f":"'Παρακολούθηση απώλειας βάρους'!C26","v":76},{"$f":"MIN(ChartPeriods)","v":"2012-11-30"},{"$f":"IF($E$4,GoalWeight,NA())","v":72},null,null,{"$f":"DATE(YEAR(B5),MONTH(B5),1)","v":"2012-11-01"},{"$f":"EOMONTH(H5,0)","v":"2012-11-30"},{"$f":"IFERROR(AVERAGEIFS(WeightTable[ΒΑΡΟΣ],WeightTable[ΗΜΕΡΟΜΗΝΙΑ],\">=\"&H5,WeightTable[ΗΜΕΡΟΜΗΝΙΑ],\"<=\"&I5),NA())","v":76}]
[{"$f":"IF(('Παρακολούθηση απώλειας βάρους'!C27=0)*('Παρακολούθηση απώλειας βάρους'!C26=0),TRUE)","v":false},{"$f":"IF(A6,0,IF('Παρακολούθηση απώλειας βάρους'!B27=0,'Παρακολούθηση απώλειας βάρους'!B26+5,'Παρακολούθηση απώλειας βάρους'!B27))","v":"2012-12-07"},{"$f":"'Παρακολούθηση απώλειας βάρους'!C27","v":76},{"$f":"MAX(ChartPeriods)","v":"2013-02-22"},72,null,null,{"$f":"IF(I5+1>MAX($B:$B),NA(),I5+1)","v":"2012-12-01"},"2012-12-31",{"$f":"IFERROR(AVERAGEIFS(WeightTable[ΒΑΡΟΣ],WeightTable[ΗΜΕΡΟΜΗΝΙΑ],\">=\"&H6,WeightTable[ΗΜΕΡΟΜΗΝΙΑ],\"<=\"&I6),NA())","v":76.55}]
[{"$f":"IF(('Παρακολούθηση απώλειας βάρους'!C28=0)*('Παρακολούθηση απώλειας βάρους'!C27=0),TRUE)","v":false},{"$f":"IF(A7,0,IF('Παρακολούθηση απώλειας βάρους'!B28=0,'Παρακολούθηση απώλειας βάρους'!B27+5,'Παρακολούθηση απώλειας βάρους'!B28))","v":"2012-12-14"},{"$f":"'Παρακολούθηση απώλειας βάρους'!C28","v":77.6},{"$nulls":4},{"$f":"IF(I6+1>MAX($B:$B),NA(),I6+1)","v":"2013-01-01"},"2013-01-31",{"$f":"IFERROR(AVERAGEIFS(WeightTable[ΒΑΡΟΣ],WeightTable[ΗΜΕΡΟΜΗΝΙΑ],\">=\"&H7,WeightTable[ΗΜΕΡΟΜΗΝΙΑ],\"<=\"&I7),NA())","v":72.75}]
[{"$f":"IF(('Παρακολούθηση απώλειας βάρους'!C29=0)*('Παρακολούθηση απώλειας βάρους'!C28=0),TRUE)","v":false},{"$f":"IF(A8,0,IF('Παρακολούθηση απώλειας βάρους'!B29=0,'Παρακολούθηση απώλειας βάρους'!B28+5,'Παρακολούθηση απώλειας βάρους'!B29))","v":"2012-12-21"},{"$f":"'Παρακολούθηση απώλειας βάρους'!C29","v":76.5},{"$nulls":4},"2013-02-01","2013-02-28",{"$f":"IFERROR(AVERAGEIFS(WeightTable[ΒΑΡΟΣ],WeightTable[ΗΜΕΡΟΜΗΝΙΑ],\">=\"&H8,WeightTable[ΗΜΕΡΟΜΗΝΙΑ],\"<=\"&I8),NA())","v":74}]
[{"$f":"IF(('Παρακολούθηση απώλειας βάρους'!C30=0)*('Παρακολούθηση απώλειας βάρους'!C29=0),TRUE)","v":false},{"$f":"IF(A9,0,IF('Παρακολούθηση απώλειας βάρους'!B30=0,'Παρακολούθηση απώλειας βάρους'!B29+5,'Παρακολούθηση απώλειας βάρους'!B30))","v":"2012-12-28"},{"$f":"'Παρακολούθηση απώλειας βάρους'!C30","v":76.1},{"$nulls":4},{"$error":"#N/A"},{"$error":"#N/A"},{"$f":"IFERROR(AVERAGEIFS(WeightTable[ΒΑΡΟΣ],WeightTable[ΗΜΕΡΟΜΗΝΙΑ],\">=\"&H9,WeightTable[ΗΜΕΡΟΜΗΝΙΑ],\"<=\"&I9),NA())","v":{"$error":"#N/A"}}]
[{"$f":"IF(('Παρακολούθηση απώλειας βάρους'!C31=0)*('Παρακολούθηση απώλειας βάρους'!C30=0),TRUE)","v":false},{"$f":"IF(A10,0,IF('Παρακολούθηση απώλειας βάρους'!B31=0,'Παρακολούθηση απώλειας βάρους'!B30+5,'Παρακολούθηση απώλειας βάρους'!B31))","v":"2013-01-04"},{"$f":"'Παρακολούθηση απώλειας βάρους'!C31","v":74},{"$nulls":4},{"$error":"#N/A"},{"$error":"#N/A"},{"$f":"IFERROR(AVERAGEIFS(WeightTable[ΒΑΡΟΣ],WeightTable[ΗΜΕΡΟΜΗΝΙΑ],\">=\"&H10,WeightTable[ΗΜΕΡΟΜΗΝΙΑ],\"<=\"&I10),NA())","v":{"$error":"#N/A"}}]
[{"$f":"IF(('Παρακολούθηση απώλειας βάρους'!C32=0)*('Παρακολούθηση απώλειας βάρους'!C31=0),TRUE)","v":false},{"$f":"IF(A11,0,IF('Παρακολούθηση απώλειας βάρους'!B32=0,'Παρακολούθηση απώλειας βάρους'!B31+5,'Παρακολούθηση απώλειας βάρους'!B32))","v":"2013-01-11"},{"$f":"'Παρακολούθηση απώλειας βάρους'!C32","v":73},{"$nulls":4},{"$error":"#N/A"},{"$error":"#N/A"},{"$f":"IFERROR(AVERAGEIFS(WeightTable[ΒΑΡΟΣ],WeightTable[ΗΜΕΡΟΜΗΝΙΑ],\">=\"&H11,WeightTable[ΗΜΕΡΟΜΗΝΙΑ],\"<=\"&I11),NA())","v":{"$error":"#N/A"}},{"$nulls":6},{"$f":"MAX($B:$B)","v":"2013-02-22"}]
[{"$f":"IF(('Παρακολούθηση απώλειας βάρους'!C33=0)*('Παρακολούθηση απώλειας βάρους'!C32=0),TRUE)","v":false},{"$f":"IF(A12,0,IF('Παρακολούθηση απώλειας βάρους'!B33=0,'Παρακολούθηση απώλειας βάρους'!B32+5,'Παρακολούθηση απώλειας βάρους'!B33))","v":"2013-01-18"},{"$f":"'Παρακολούθηση απώλειας βάρους'!C33","v":72},{"$nulls":4},{"$error":"#N/A"},{"$error":"#N/A"},{"$f":"IFERROR(AVERAGEIFS(WeightTable[ΒΑΡΟΣ],WeightTable[ΗΜΕΡΟΜΗΝΙΑ],\">=\"&H12,WeightTable[ΗΜΕΡΟΜΗΝΙΑ],\"<=\"&I12),NA())","v":{"$error":"#N/A"}}]
[{"$f":"IF(('Παρακολούθηση απώλειας βάρους'!C34=0)*('Παρακολούθηση απώλειας βάρους'!C33=0),TRUE)","v":false},{"$f":"IF(A13,0,IF('Παρακολούθηση απώλειας βάρους'!B34=0,'Παρακολούθηση απώλειας βάρους'!B33+5,'Παρακολούθηση απώλειας βάρους'!B34))","v":"2013-01-25"},{"$f":"'Παρακολούθηση απώλειας βάρους'!C34","v":72},{"$nulls":4},{"$error":"#N/A"},{"$error":"#N/A"},{"$f":"IFERROR(AVERAGEIFS(WeightTable[ΒΑΡΟΣ],WeightTable[ΗΜΕΡΟΜΗΝΙΑ],\">=\"&H13,WeightTable[ΗΜΕΡΟΜΗΝΙΑ],\"<=\"&I13),NA())","v":{"$error":"#N/A"}}]
[{"$f":"IF(('Παρακολούθηση απώλειας βάρους'!C35=0)*('Παρακολούθηση απώλειας βάρους'!C34=0),TRUE)","v":false},{"$f":"IF(A14,0,IF('Παρακολούθηση απώλειας βάρους'!B35=0,'Παρακολούθηση απώλειας βάρους'!B34+5,'Παρακολούθηση απώλειας βάρους'!B35))","v":"2013-02-01"},{"$f":"'Παρακολούθηση απώλειας βάρους'!C35","v":73},{"$nulls":4},{"$error":"#N/A"},{"$error":"#N/A"},{"$f":"IFERROR(AVERAGEIFS(WeightTable[ΒΑΡΟΣ],WeightTable[ΗΜΕΡΟΜΗΝΙΑ],\">=\"&H14,WeightTable[ΗΜΕΡΟΜΗΝΙΑ],\"<=\"&I14),NA())","v":{"$error":"#N/A"}}]
[{"$f":"IF(('Παρακολούθηση απώλειας βάρους'!C36=0)*('Παρακολούθηση απώλειας βάρους'!C35=0),TRUE)","v":false},{"$f":"IF(A15,0,IF('Παρακολούθηση απώλειας βάρους'!B36=0,'Παρακολούθηση απώλειας βάρους'!B35+5,'Παρακολούθηση απώλειας βάρους'!B36))","v":"2013-02-08"},{"$f":"'Παρακολούθηση απώλειας βάρους'!C36","v":74},{"$nulls":4},{"$error":"#N/A"},{"$error":"#N/A"},{"$f":"IFERROR(AVERAGEIFS(WeightTable[ΒΑΡΟΣ],WeightTable[ΗΜΕΡΟΜΗΝΙΑ],\">=\"&H15,WeightTable[ΗΜΕΡΟΜΗΝΙΑ],\"<=\"&I15),NA())","v":{"$error":"#N/A"}}]
[{"$f":"IF(('Παρακολούθηση απώλειας βάρους'!C37=0)*('Παρακολούθηση απώλειας βάρους'!C36=0),TRUE)","v":false},{"$f":"IF(A16,0,IF('Παρακολούθηση απώλειας βάρους'!B37=0,'Παρακολούθηση απώλειας βάρους'!B36+5,'Παρακολούθηση απώλειας βάρους'!B37))","v":"2013-02-15"},{"$f":"'Παρακολούθηση απώλειας βάρους'!C37","v":75},{"$nulls":4},{"$error":"#N/A"},{"$error":"#N/A"},{"$f":"IFERROR(AVERAGEIFS(WeightTable[ΒΑΡΟΣ],WeightTable[ΗΜΕΡΟΜΗΝΙΑ],\">=\"&H16,WeightTable[ΗΜΕΡΟΜΗΝΙΑ],\"<=\"&I16),NA())","v":{"$error":"#N/A"}}]
[{"$f":"IF(('Παρακολούθηση απώλειας βάρους'!C38=0)*('Παρακολούθηση απώλειας βάρους'!C37=0),TRUE)","v":false},{"$f":"IF(A17,0,IF('Παρακολούθηση απώλειας βάρους'!B38=0,'Παρακολούθηση απώλειας βάρους'!B37+5,'Παρακολούθηση απώλειας βάρους'!B38))","v":"2013-02-22"},{"$f":"'Παρακολούθηση απώλειας βάρους'!C38","v":0},{"$nulls":4},{"$error":"#N/A"},{"$error":"#N/A"},{"$f":"IFERROR(AVERAGEIFS(WeightTable[ΒΑΡΟΣ],WeightTable[ΗΜΕΡΟΜΗΝΙΑ],\">=\"&H17,WeightTable[ΗΜΕΡΟΜΗΝΙΑ],\"<=\"&I17),NA())","v":{"$error":"#N/A"}}]
[{"$f":"IF(('Παρακολούθηση απώλειας βάρους'!C39=0)*('Παρακολούθηση απώλειας βάρους'!C38=0),TRUE)","v":true},{"$f":"IF(A18,0,IF('Παρακολούθηση απώλειας βάρους'!B39=0,'Παρακολούθηση απώλειας βάρους'!B38+5,'Παρακολούθηση απώλειας βάρους'!B39))","v":"00:00:00"},{"$f":"'Παρακολούθηση απώλειας βάρους'!C39","v":0},{"$nulls":4},{"$error":"#N/A"},{"$error":"#N/A"},{"$f":"IFERROR(AVERAGEIFS(WeightTable[ΒΑΡΟΣ],WeightTable[ΗΜΕΡΟΜΗΝΙΑ],\">=\"&H18,WeightTable[ΗΜΕΡΟΜΗΝΙΑ],\"<=\"&I18),NA())","v":{"$error":"#N/A"}}]
[{"$f":"IF(('Παρακολούθηση απώλειας βάρους'!C40=0)*('Παρακολούθηση απώλειας βάρους'!C39=0),TRUE)","v":true},{"$f":"IF(A19,0,IF('Παρακολούθηση απώλειας βάρους'!B40=0,'Παρακολούθηση απώλειας βάρους'!B39+5,'Παρακολούθηση απώλειας βάρους'!B40))","v":"00:00:00"},{"$f":"'Παρακολούθηση απώλειας βάρους'!C40","v":0},{"$nulls":4},{"$error":"#N/A"},{"$error":"#N/A"},{"$f":"IFERROR(AVERAGEIFS(WeightTable[ΒΑΡΟΣ],WeightTable[ΗΜΕΡΟΜΗΝΙΑ],\">=\"&H19,WeightTable[ΗΜΕΡΟΜΗΝΙΑ],\"<=\"&I19),NA())","v":{"$error":"#N/A"}}]
[{"$f":"IF(('Παρακολούθηση απώλειας βάρους'!C41=0)*('Παρακολούθηση απώλειας βάρους'!C40=0),TRUE)","v":true},{"$f":"IF(A20,0,IF('Παρακολούθηση απώλειας βάρους'!B41=0,'Παρακολούθηση απώλειας βάρους'!B40+5,'Παρακολούθηση απώλειας βάρους'!B41))","v":"00:00:00"},{"$f":"'Παρακολούθηση απώλειας βάρους'!C41","v":0},{"$nulls":4},{"$error":"#N/A"},{"$error":"#N/A"},{"$f":"IFERROR(AVERAGEIFS(WeightTable[ΒΑΡΟΣ],WeightTable[ΗΜΕΡΟΜΗΝΙΑ],\">=\"&H20,WeightTable[ΗΜΕΡΟΜΗΝΙΑ],\"<=\"&I20),NA())","v":{"$error":"#N/A"}}]
[{"$f":"IF(('Παρακολούθηση απώλειας βάρους'!C42=0)*('Παρακολούθηση απώλειας βάρους'!C41=0),TRUE)","v":true},{"$f":"IF(A21,0,IF('Παρακολούθηση απώλειας βάρους'!B42=0,'Παρακολούθηση απώλειας βάρους'!B41+5,'Παρακολούθηση απώλειας βάρους'!B42))","v":"00:00:00"},{"$f":"'Παρακολούθηση απώλειας βάρους'!C42","v":0},{"$nulls":4},{"$error":"#N/A"},{"$error":"#N/A"},{"$f":"IFERROR(AVERAGEIFS(WeightTable[ΒΑΡΟΣ],WeightTable[ΗΜΕΡΟΜΗΝΙΑ],\">=\"&H21,WeightTable[ΗΜΕΡΟΜΗΝΙΑ],\"<=\"&I21),NA())","v":{"$error":"#N/A"}}]
[{"$f":"IF(('Παρακολούθηση απώλειας βάρους'!C43=0)*('Παρακολούθηση απώλειας βάρους'!C42=0),TRUE)","v":true},{"$f":"IF(A22,0,IF('Παρακολούθηση απώλειας βάρους'!B43=0,'Παρακολούθηση απώλειας βάρους'!B42+5,'Παρακολούθηση απώλειας βάρους'!B43))","v":"00:00:00"},{"$f":"'Παρακολούθηση απώλειας βάρους'!C43","v":0},{"$nulls":4},{"$error":"#N/A"},{"$error":"#N/A"},{"$f":"IFERROR(AVERAGEIFS(WeightTable[ΒΑΡΟΣ],WeightTable[ΗΜΕΡΟΜΗΝΙΑ],\">=\"&H22,WeightTable[ΗΜΕΡΟΜΗΝΙΑ],\"<=\"&I22),NA())","v":{"$error":"#N/A"}}]
[{"$f":"IF(('Παρακολούθηση απώλειας βάρους'!C44=0)*('Παρακολούθηση απώλειας βάρους'!C43=0),TRUE)","v":true},{"$f":"IF(A23,0,IF('Παρακολούθηση απώλειας βάρους'!B44=0,'Παρακολούθηση απώλειας βάρους'!B43+5,'Παρακολούθηση απώλειας βάρους'!B44))","v":"00:00:00"},{"$f":"'Παρακολούθηση απώλειας βάρους'!C44","v":0},{"$nulls":4},{"$error":"#N/A"},{"$error":"#N/A"},{"$f":"IFERROR(AVERAGEIFS(WeightTable[ΒΑΡΟΣ],WeightTable[ΗΜΕΡΟΜΗΝΙΑ],\">=\"&H23,WeightTable[ΗΜΕΡΟΜΗΝΙΑ],\"<=\"&I23),NA())","v":{"$error":"#N/A"}}]
[{"$f":"IF(('Παρακολούθηση απώλειας βάρους'!C45=0)*('Παρακολούθηση απώλειας βάρους'!C44=0),TRUE)","v":true},{"$f":"IF(A24,0,IF('Παρακολούθηση απώλειας βάρους'!B45=0,'Παρακολούθηση απώλειας βάρους'!B44+5,'Παρακολούθηση απώλειας βάρους'!B45))","v":"00:00:00"},{"$f":"'Παρακολούθηση απώλειας βάρους'!C45","v":0},{"$nulls":4},{"$error":"#N/A"},{"$error":"#N/A"},{"$f":"IFERROR(AVERAGEIFS(WeightTable[ΒΑΡΟΣ],WeightTable[ΗΜΕΡΟΜΗΝΙΑ],\">=\"&H24,WeightTable[ΗΜΕΡΟΜΗΝΙΑ],\"<=\"&I24),NA())","v":{"$error":"#N/A"}}]
[{"$f":"IF(('Παρακολούθηση απώλειας βάρους'!C46=0)*('Παρακολούθηση απώλειας βάρους'!C45=0),TRUE)","v":true},{"$f":"IF(A25,0,IF('Παρακολούθηση απώλειας βάρους'!B46=0,'Παρακολούθηση απώλειας βάρους'!B45+5,'Παρακολούθηση απώλειας βάρους'!B46))","v":"00:00:00"},{"$f":"'Παρακολούθηση απώλειας βάρους'!C46","v":0},{"$nulls":4},{"$error":"#N/A"},{"$error":"#N/A"},{"$f":"IFERROR(AVERAGEIFS(WeightTable[ΒΑΡΟΣ],WeightTable[ΗΜΕΡΟΜΗΝΙΑ],\">=\"&H25,WeightTable[ΗΜΕΡΟΜΗΝΙΑ],\"<=\"&I25),NA())","v":{"$error":"#N/A"}}]
[{"$f":"IF(('Παρακολούθηση απώλειας βάρους'!C47=0)*('Παρακολούθηση απώλειας βάρους'!C46=0),TRUE)","v":true},{"$f":"IF(A26,0,IF('Παρακολούθηση απώλειας βάρους'!B47=0,'Παρακολούθηση απώλειας βάρους'!B46+5,'Παρακολούθηση απώλειας βάρους'!B47))","v":"00:00:00"},{"$f":"'Παρακολούθηση απώλειας βάρους'!C47","v":0},{"$nulls":4},{"$error":"#N/A"},{"$error":"#N/A"},{"$f":"IFERROR(AVERAGEIFS(WeightTable[ΒΑΡΟΣ],WeightTable[ΗΜΕΡΟΜΗΝΙΑ],\">=\"&H26,WeightTable[ΗΜΕΡΟΜΗΝΙΑ],\"<=\"&I26),NA())","v":{"$error":"#N/A"}}]
[{"$f":"IF(('Παρακολούθηση απώλειας βάρους'!C48=0)*('Παρακολούθηση απώλειας βάρους'!C47=0),TRUE)","v":true},{"$f":"IF(A27,0,IF('Παρακολούθηση απώλειας βάρους'!B48=0,'Παρακολούθηση απώλειας βάρους'!B47+5,'Παρακολούθηση απώλειας βάρους'!B48))","v":"00:00:00"},{"$f":"'Παρακολούθηση απώλειας βάρους'!C48","v":0},{"$nulls":4},{"$error":"#N/A"},{"$error":"#N/A"},{"$f":"IFERROR(AVERAGEIFS(WeightTable[ΒΑΡΟΣ],WeightTable[ΗΜΕΡΟΜΗΝΙΑ],\">=\"&H27,WeightTable[ΗΜΕΡΟΜΗΝΙΑ],\"<=\"&I27),NA())","v":{"$error":"#N/A"}}]
[{"$f":"IF(('Παρακολούθηση απώλειας βάρους'!C49=0)*('Παρακολούθηση απώλειας βάρους'!C48=0),TRUE)","v":true},{"$f":"IF(A28,0,IF('Παρακολούθηση απώλειας βάρους'!B49=0,'Παρακολούθηση απώλειας βάρους'!B48+5,'Παρακολούθηση απώλειας βάρους'!B49))","v":"00:00:00"},{"$f":"'Παρακολούθηση απώλειας βάρους'!C49","v":0},{"$nulls":4},{"$error":"#N/A"},{"$error":"#N/A"},{"$f":"IFERROR(AVERAGEIFS(WeightTable[ΒΑΡΟΣ],WeightTable[ΗΜΕΡΟΜΗΝΙΑ],\">=\"&H28,WeightTable[ΗΜΕΡΟΜΗΝΙΑ],\"<=\"&I28),NA())","v":{"$error":"#N/A"}}]
[{"$f":"IF(('Παρακολούθηση απώλειας βάρους'!C50=0)*('Παρακολούθηση απώλειας βάρους'!C49=0),TRUE)","v":true},{"$f":"IF(A29,0,IF('Παρακολούθηση απώλειας βάρους'!B50=0,'Παρακολούθηση απώλειας βάρους'!B49+5,'Παρακολούθηση απώλειας βάρους'!B50))","v":"00:00:00"},{"$f":"'Παρακολούθηση απώλειας βάρους'!C50","v":0}]
[{"$f":"IF(('Παρακολούθηση απώλειας βάρους'!C51=0)*('Παρακολούθηση απώλειας βάρους'!C50=0),TRUE)","v":true},{"$f":"IF(A30,0,IF('Παρακολούθηση απώλειας βάρους'!B51=0,'Παρακολούθηση απώλειας βάρους'!B50+5,'Παρακολούθηση απώλειας βάρους'!B51))","v":"00:00:00"},{"$f":"'Παρακολούθηση απώλειας βάρους'!C51","v":0}]
[{"$f":"IF(('Παρακολούθηση απώλειας βάρους'!C52=0)*('Παρακολούθηση απώλειας βάρους'!C51=0),TRUE)","v":true},{"$f":"IF(A31,0,IF('Παρακολούθηση απώλειας βάρους'!B52=0,'Παρακολούθηση απώλειας βάρους'!B51+5,'Παρακολούθηση απώλειας βάρους'!B52))","v":"00:00:00"},{"$f":"'Παρακολούθηση απώλειας βάρους'!C52","v":0}]
[{"$f":"IF(('Παρακολούθηση απώλειας βάρους'!C53=0)*('Παρακολούθηση απώλειας βάρους'!C52=0),TRUE)","v":true},{"$f":"IF(A32,0,IF('Παρακολούθηση απώλειας βάρους'!B53=0,'Παρακολούθηση απώλειας βάρους'!B52+5,'Παρακολούθηση απώλειας βάρους'!B53))","v":"00:00:00"},{"$f":"'Παρακολούθηση απώλειας βάρους'!C53","v":0}]
[{"$f":"IF(('Παρακολούθηση απώλειας βάρους'!C54=0)*('Παρακολούθηση απώλειας βάρους'!C53=0),TRUE)","v":true},{"$f":"IF(A33,0,IF('Παρακολούθηση απώλειας βάρους'!B54=0,'Παρακολούθηση απώλειας βάρους'!B53+5,'Παρακολούθηση απώλειας βάρους'!B54))","v":"00:00:00"},{"$f":"'Παρακολούθηση απώλειας βάρους'!C54","v":0}]
[{"$f":"IF(('Παρακολούθηση απώλειας βάρους'!C55=0)*('Παρακολούθηση απώλειας βάρους'!C54=0),TRUE)","v":true},{"$f":"IF(A34,0,IF('Παρακολούθηση απώλειας βάρους'!B55=0,'Παρακολούθηση απώλειας βάρους'!B54+5,'Παρακολούθηση απώλειας βάρους'!B55))","v":"00:00:00"},{"$f":"'Παρακολούθηση απώλειας βάρους'!C55","v":0}]
[{"$f":"IF(('Παρακολούθηση απώλειας βάρους'!C56=0)*('Παρακολούθηση απώλειας βάρους'!C55=0),TRUE)","v":true},{"$f":"IF(A35,0,IF('Παρακολούθηση απώλειας βάρους'!B56=0,'Παρακολούθηση απώλειας βάρους'!B55+5,'Παρακολούθηση απώλειας βάρους'!B56))","v":"00:00:00"},{"$f":"'Παρακολούθηση απώλειας βάρους'!C56","v":0}]
[{"$f":"IF(('Παρακολούθηση απώλειας βάρους'!C57=0)*('Παρακολούθηση απώλειας βάρους'!C56=0),TRUE)","v":true},{"$f":"IF(A36,0,IF('Παρακολούθηση απώλειας βάρους'!B57=0,'Παρακολούθηση απώλειας βάρους'!B56+5,'Παρακολούθηση απώλειας βάρους'!B57))","v":"00:00:00"},{"$f":"'Παρακολούθηση απώλειας βάρους'!C57","v":0}]
[{"$f":"IF(('Παρακολούθηση απώλειας βάρους'!C58=0)*('Παρακολούθηση απώλειας βάρους'!C57=0),TRUE)","v":true},{"$f":"IF(A37,0,IF('Παρακολούθηση απώλειας βάρους'!B58=0,'Παρακολούθηση απώλειας βάρους'!B57+5,'Παρακολούθηση απώλειας βάρους'!B58))","v":"00:00:00"},{"$f":"'Παρακολούθηση απώλειας βάρους'!C58","v":0}]
[{"$f":"IF(('Παρακολούθηση απώλειας βάρους'!C59=0)*('Παρακολούθηση απώλειας βάρους'!C58=0),TRUE)","v":true},{"$f":"IF(A38,0,IF('Παρακολούθηση απώλειας βάρους'!B59=0,'Παρακολούθηση απώλειας βάρους'!B58+5,'Παρακολούθηση απώλειας βάρους'!B59))","v":"00:00:00"},{"$f":"'Παρακολούθηση απώλειας βάρους'!C59","v":0}]
[{"$f":"IF(('Παρακολούθηση απώλειας βάρους'!C60=0)*('Παρακολούθηση απώλειας βάρους'!C59=0),TRUE)","v":true},{"$f":"IF(A39,0,IF('Παρακολούθηση απώλειας βάρους'!B60=0,'Παρακολούθηση απώλειας βάρους'!B59+5,'Παρακολούθηση απώλειας βάρους'!B60))","v":"00:00:00"},{"$f":"'Παρακολούθηση απώλειας βάρους'!C60","v":0}]
[{"$f":"IF(('Παρακολούθηση απώλειας βάρους'!C61=0)*('Παρακολούθηση απώλειας βάρους'!C60=0),TRUE)","v":true},{"$f":"IF(A40,0,IF('Παρακολούθηση απώλειας βάρους'!B61=0,'Παρακολούθηση απώλειας βάρους'!B60+5,'Παρακολούθηση απώλειας βάρους'!B61))","v":"00:00:00"},{"$f":"'Παρακολούθηση απώλειας βάρους'!C61","v":0}]
[{"$f":"IF(('Παρακολούθηση απώλειας βάρους'!C62=0)*('Παρακολούθηση απώλειας βάρους'!C61=0),TRUE)","v":true},{"$f":"IF(A41,0,IF('Παρακολούθηση απώλειας βάρους'!B62=0,'Παρακολούθηση απώλειας βάρους'!B61+5,'Παρακολούθηση απώλειας βάρους'!B62))","v":"00:00:00"},{"$f":"'Παρακολούθηση απώλειας βάρους'!C62","v":0}]
[{"$f":"IF(('Παρακολούθηση απώλειας βάρους'!C63=0)*('Παρακολούθηση απώλειας βάρους'!C62=0),TRUE)","v":true},{"$f":"IF(A42,0,IF('Παρακολούθηση απώλειας βάρους'!B63=0,'Παρακολούθηση απώλειας βάρους'!B62+5,'Παρακολούθηση απώλειας βάρους'!B63))","v":"00:00:00"},{"$f":"'Παρακολούθηση απώλειας βάρους'!C63","v":0}]
[{"$f":"IF(('Παρακολούθηση απώλειας βάρους'!C64=0)*('Παρακολούθηση απώλειας βάρους'!C63=0),TRUE)","v":true},{"$f":"IF(A43,0,IF('Παρακολούθηση απώλειας βάρους'!B64=0,'Παρακολούθηση απώλειας βάρους'!B63+5,'Παρακολούθηση απώλειας βάρους'!B64))","v":"00:00:00"},{"$f":"'Παρακολούθηση απώλειας βάρους'!C64","v":0}]
[{"$f":"IF(('Παρακολούθηση απώλειας βάρους'!C65=0)*('Παρακολούθηση απώλειας βάρους'!C64=0),TRUE)","v":true},{"$f":"IF(A44,0,IF('Παρακολούθηση απώλειας βάρους'!B65=0,'Παρακολούθηση απώλειας βάρους'!B64+5,'Παρακολούθηση απώλειας βάρους'!B65))","v":"00:00:00"},{"$f":"'Παρακολούθηση απώλειας βάρους'!C65","v":0}]
[{"$f":"IF(('Παρακολούθηση απώλειας βάρους'!C66=0)*('Παρακολούθηση απώλειας βάρους'!C65=0),TRUE)","v":true},{"$f":"IF(A45,0,IF('Παρακολούθηση απώλειας βάρους'!B66=0,'Παρακολούθηση απώλειας βάρους'!B65+5,'Παρακολούθηση απώλειας βάρους'!B66))","v":"00:00:00"},{"$f":"'Παρακολούθηση απώλειας βάρους'!C66","v":0}]
[{"$f":"IF(('Παρακολούθηση απώλειας βάρους'!C67=0)*('Παρακολούθηση απώλειας βάρους'!C66=0),TRUE)","v":true},{"$f":"IF(A46,0,IF('Παρακολούθηση απώλειας βάρους'!B67=0,'Παρακολούθηση απώλειας βάρους'!B66+5,'Παρακολούθηση απώλειας βάρους'!B67))","v":"00:00:00"},{"$f":"'Παρακολούθηση απώλειας βάρους'!C67","v":0}]
[{"$f":"IF(('Παρακολούθηση απώλειας βάρους'!C68=0)*('Παρακολούθηση απώλειας βάρους'!C67=0),TRUE)","v":true},{"$f":"IF(A47,0,IF('Παρακολούθηση απώλειας βάρους'!B68=0,'Παρακολούθηση απώλειας βάρους'!B67+5,'Παρακολούθηση απώλειας βάρους'!B68))","v":"00:00:00"},{"$f":"'Παρακολούθηση απώλειας βάρους'!C68","v":0}]
[{"$f":"IF(('Παρακολούθηση απώλειας βάρους'!C69=0)*('Παρακολούθηση απώλειας βάρους'!C68=0),TRUE)","v":true},{"$f":"IF(A48,0,IF('Παρακολούθηση απώλειας βάρους'!B69=0,'Παρακολούθηση απώλειας βάρους'!B68+5,'Παρακολούθηση απώλειας βάρους'!B69))","v":"00:00:00"},{"$f":"'Παρακολούθηση απώλειας βάρους'!C69","v":0}]
[{"$f":"IF(('Παρακολούθηση απώλειας βάρους'!C70=0)*('Παρακολούθηση απώλειας βάρους'!C69=0),TRUE)","v":true},{"$f":"IF(A49,0,IF('Παρακολούθηση απώλειας βάρους'!B70=0,'Παρακολούθηση απώλειας βάρους'!B69+5,'Παρακολούθηση απώλειας βάρους'!B70))","v":"00:00:00"},{"$f":"'Παρακολούθηση απώλειας βάρους'!C70","v":0}]
[{"$f":"IF(('Παρακολούθηση απώλειας βάρους'!C71=0)*('Παρακολούθηση απώλειας βάρους'!C70=0),TRUE)","v":true},{"$f":"IF(A50,0,IF('Παρακολούθηση απώλειας βάρους'!B71=0,'Παρακολούθηση απώλειας βάρους'!B70+5,'Παρακολούθηση απώλειας βάρους'!B71))","v":"00:00:00"},{"$f":"'Παρακολούθηση απώλειας βάρους'!C71","v":0}]
[{"$f":"IF(('Παρακολούθηση απώλειας βάρους'!C72=0)*('Παρακολούθηση απώλειας βάρους'!C71=0),TRUE)","v":true},{"$f":"IF(A51,0,IF('Παρακολούθηση απώλειας βάρους'!B72=0,'Παρακολούθηση απώλειας βάρους'!B71+5,'Παρακολούθηση απώλειας βάρους'!B72))","v":"00:00:00"},{"$f":"'Παρακολούθηση απώλειας βάρους'!C72","v":0}]
[{"$f":"IF(('Παρακολούθηση απώλειας βάρους'!C73=0)*('Παρακολούθηση απώλειας βάρους'!C72=0),TRUE)","v":true},{"$f":"IF(A52,0,IF('Παρακολούθηση απώλειας βάρους'!B73=0,'Παρακολούθηση απώλειας βάρους'!B72+5,'Παρακολούθηση απώλειας βάρους'!B73))","v":"00:00:00"},{"$f":"'Παρακολούθηση απώλειας βάρους'!C73","v":0}]
[{"$f":"IF(('Παρακολούθηση απώλειας βάρους'!C74=0)*('Παρακολούθηση απώλειας βάρους'!C73=0),TRUE)","v":true},{"$f":"IF(A53,0,IF('Παρακολούθηση απώλειας βάρους'!B74=0,'Παρακολούθηση απώλειας βάρους'!B73+5,'Παρακολούθηση απώλειας βάρους'!B74))","v":"00:00:00"},{"$f":"'Παρακολούθηση απώλειας βάρους'!C74","v":0}]
[{"$f":"IF(('Παρακολούθηση απώλειας βάρους'!C75=0)*('Παρακολούθηση απώλειας βάρους'!C74=0),TRUE)","v":true},{"$f":"IF(A54,0,IF('Παρακολούθηση απώλειας βάρους'!B75=0,'Παρακολούθηση απώλειας βάρους'!B74+5,'Παρακολούθηση απώλειας βάρους'!B75))","v":"00:00:00"},{"$f":"'Παρακολούθηση απώλειας βάρους'!C75","v":0}]
[{"$f":"IF(('Παρακολούθηση απώλειας βάρους'!C76=0)*('Παρακολούθηση απώλειας βάρους'!C75=0),TRUE)","v":true},{"$f":"IF(A55,0,IF('Παρακολούθηση απώλειας βάρους'!B76=0,'Παρακολούθηση απώλειας βάρους'!B75+5,'Παρακολούθηση απώλειας βάρους'!B76))","v":"00:00:00"},{"$f":"'Παρακολούθηση απώλειας βάρους'!C76","v":0}]
[{"$f":"IF(('Παρακολούθηση απώλειας βάρους'!C77=0)*('Παρακολούθηση απώλειας βάρους'!C76=0),TRUE)","v":true},{"$f":"IF(A56,0,IF('Παρακολούθηση απώλειας βάρους'!B77=0,'Παρακολούθηση απώλειας βάρους'!B76+5,'Παρακολούθηση απώλειας βάρους'!B77))","v":"00:00:00"},{"$f":"'Παρακολούθηση απώλειας βάρους'!C77","v":0}]
[{"$f":"IF(('Παρακολούθηση απώλειας βάρους'!C78=0)*('Παρακολούθηση απώλειας βάρους'!C77=0),TRUE)","v":true},{"$f":"IF(A57,0,IF('Παρακολούθηση απώλειας βάρους'!B78=0,'Παρακολούθηση απώλειας βάρους'!B77+5,'Παρακολούθηση απώλειας βάρους'!B78))","v":"00:00:00"},{"$f":"'Παρακολούθηση απώλειας βάρους'!C78","v":0}]
[{"$f":"IF(('Παρακολούθηση απώλειας βάρους'!C79=0)*('Παρακολούθηση απώλειας βάρους'!C78=0),TRUE)","v":true},{"$f":"IF(A58,0,IF('Παρακολούθηση απώλειας βάρους'!B79=0,'Παρακολούθηση απώλειας βάρους'!B78+5,'Παρακολούθηση απώλειας βάρους'!B79))","v":"00:00:00"},{"$f":"'Παρακολούθηση απώλειας βάρους'!C79","v":0}]
[{"$f":"IF(('Παρακολούθηση απώλειας βάρους'!C80=0)*('Παρακολούθηση απώλειας βάρους'!C79=0),TRUE)","v":true},{"$f":"IF(A59,0,IF('Παρακολούθηση απώλειας βάρους'!B80=0,'Παρακολούθηση απώλειας βάρους'!B79+5,'Παρακολούθηση απώλειας βάρους'!B80))","v":"00:00:00"},{"$f":"'Παρακολούθηση απώλειας βάρους'!C80","v":0}]
[{"$f":"IF(('Παρακολούθηση απώλειας βάρους'!C81=0)*('Παρακολούθηση απώλειας βάρους'!C80=0),TRUE)","v":true},{"$f":"IF(A60,0,IF('Παρακολούθηση απώλειας βάρους'!B81=0,'Παρακολούθηση απώλειας βάρους'!B80+5,'Παρακολούθηση απώλειας βάρους'!B81))","v":"00:00:00"},{"$f":"'Παρακολούθηση απώλειας βάρους'!C81","v":0}]
[{"$f":"IF(('Παρακολούθηση απώλειας βάρους'!C82=0)*('Παρακολούθηση απώλειας βάρους'!C81=0),TRUE)","v":true},{"$f":"IF(A61,0,IF('Παρακολούθηση απώλειας βάρους'!B82=0,'Παρακολούθηση απώλειας βάρους'!B81+5,'Παρακολούθηση απώλειας βάρους'!B82))","v":"00:00:00"},{"$f":"'Παρακολούθηση απώλειας βάρους'!C82","v":0}]
[{"$f":"IF(('Παρακολούθηση απώλειας βάρους'!C83=0)*('Παρακολούθηση απώλειας βάρους'!C82=0),TRUE)","v":true},{"$f":"IF(A62,0,IF('Παρακολούθηση απώλειας βάρους'!B83=0,'Παρακολούθηση απώλειας βάρους'!B82+5,'Παρακολούθηση απώλειας βάρους'!B83))","v":"00:00:00"},{"$f":"'Παρακολούθηση απώλειας βάρους'!C83","v":0}]
[{"$f":"IF(('Παρακολούθηση απώλειας βάρους'!C84=0)*('Παρακολούθηση απώλειας βάρους'!C83=0),TRUE)","v":true},{"$f":"IF(A63,0,IF('Παρακολούθηση απώλειας βάρους'!B84=0,'Παρακολούθηση απώλειας βάρους'!B83+5,'Παρακολούθηση απώλειας βάρους'!B84))","v":"00:00:00"},{"$f":"'Παρακολούθηση απώλειας βάρους'!C84","v":0}]
[{"$f":"IF(('Παρακολούθηση απώλειας βάρους'!C85=0)*('Παρακολούθηση απώλειας βάρους'!C84=0),TRUE)","v":true},{"$f":"IF(A64,0,IF('Παρακολούθηση απώλειας βάρους'!B85=0,'Παρακολούθηση απώλειας βάρους'!B84+5,'Παρακολούθηση απώλειας βάρους'!B85))","v":"00:00:00"},{"$f":"'Παρακολούθηση απώλειας βάρους'!C85","v":0}]
[{"$f":"IF(('Παρακολούθηση απώλειας βάρους'!C86=0)*('Παρακολούθηση απώλειας βάρους'!C85=0),TRUE)","v":true},{"$f":"IF(A65,0,IF('Παρακολούθηση απώλειας βάρους'!B86=0,'Παρακολούθηση απώλειας βάρους'!B85+5,'Παρακολούθηση απώλειας βάρους'!B86))","v":"00:00:00"},{"$f":"'Παρακολούθηση απώλειας βάρους'!C86","v":0}]
[{"$f":"IF(('Παρακολούθηση απώλειας βάρους'!C87=0)*('Παρακολούθηση απώλειας βάρους'!C86=0),TRUE)","v":true},{"$f":"IF(A66,0,IF('Παρακολούθηση απώλειας βάρους'!B87=0,'Παρακολούθηση απώλειας βάρους'!B86+5,'Παρακολούθηση απώλειας βάρους'!B87))","v":"00:00:00"},{"$f":"'Παρακολούθηση απώλειας βάρους'!C87","v":0}]
[{"$f":"IF(('Παρακολούθηση απώλειας βάρους'!C88=0)*('Παρακολούθηση απώλειας βάρους'!C87=0),TRUE)","v":true},{"$f":"IF(A67,0,IF('Παρακολούθηση απώλειας βάρους'!B88=0,'Παρακολούθηση απώλειας βάρους'!B87+5,'Παρακολούθηση απώλειας βάρους'!B88))","v":"00:00:00"},{"$f":"'Παρακολούθηση απώλειας βάρους'!C88","v":0}]
[{"$f":"IF(('Παρακολούθηση απώλειας βάρους'!C89=0)*('Παρακολούθηση απώλειας βάρους'!C88=0),TRUE)","v":true},{"$f":"IF(A68,0,IF('Παρακολούθηση απώλειας βάρους'!B89=0,'Παρακολούθηση απώλειας βάρους'!B88+5,'Παρακολούθηση απώλειας βάρους'!B89))","v":"00:00:00"},{"$f":"'Παρακολούθηση απώλειας βάρους'!C89","v":0}]
[{"$f":"IF(('Παρακολούθηση απώλειας βάρους'!C90=0)*('Παρακολούθηση απώλειας βάρους'!C89=0),TRUE)","v":true},{"$f":"IF(A69,0,IF('Παρακολούθηση απώλειας βάρους'!B90=0,'Παρακολούθηση απώλειας βάρους'!B89+5,'Παρακολούθηση απώλειας βάρους'!B90))","v":"00:00:00"},{"$f":"'Παρακολούθηση απώλειας βάρους'!C90","v":0}]
[{"$f":"IF(('Παρακολούθηση απώλειας βάρους'!C91=0)*('Παρακολούθηση απώλειας βάρους'!C90=0),TRUE)","v":true},{"$f":"IF(A70,0,IF('Παρακολούθηση απώλειας βάρους'!B91=0,'Παρακολούθηση απώλειας βάρους'!B90+5,'Παρακολούθηση απώλειας βάρους'!B91))","v":"00:00:00"},{"$f":"'Παρακολούθηση απώλειας βάρους'!C91","v":0}]
[{"$f":"IF(('Παρακολούθηση απώλειας βάρους'!C92=0)*('Παρακολούθηση απώλειας βάρους'!C91=0),TRUE)","v":true},{"$f":"IF(A71,0,IF('Παρακολούθηση απώλειας βάρους'!B92=0,'Παρακολούθηση απώλειας βάρους'!B91+5,'Παρακολούθηση απώλειας βάρους'!B92))","v":"00:00:00"},{"$f":"'Παρακολούθηση απώλειας βάρους'!C92","v":0}]
[{"$f":"IF(('Παρακολούθηση απώλειας βάρους'!C93=0)*('Παρακολούθηση απώλειας βάρους'!C92=0),TRUE)","v":true},{"$f":"IF(A72,0,IF('Παρακολούθηση απώλειας βάρους'!B93=0,'Παρακολούθηση απώλειας βάρους'!B92+5,'Παρακολούθηση απώλειας βάρους'!B93))","v":"00:00:00"},{"$f":"'Παρακολούθηση απώλειας βάρους'!C93","v":0}]
[{"$f":"IF(('Παρακολούθηση απώλειας βάρους'!C94=0)*('Παρακολούθηση απώλειας βάρους'!C93=0),TRUE)","v":true},{"$f":"IF(A73,0,IF('Παρακολούθηση απώλειας βάρους'!B94=0,'Παρακολούθηση απώλειας βάρους'!B93+5,'Παρακολούθηση απώλειας βάρους'!B94))","v":"00:00:00"},{"$f":"'Παρακολούθηση απώλειας βάρους'!C94","v":0}]
[{"$f":"IF(('Παρακολούθηση απώλειας βάρους'!C95=0)*('Παρακολούθηση απώλειας βάρους'!C94=0),TRUE)","v":true},{"$f":"IF(A74,0,IF('Παρακολούθηση απώλειας βάρους'!B95=0,'Παρακολούθηση απώλειας βάρους'!B94+5,'Παρακολούθηση απώλειας βάρους'!B95))","v":"00:00:00"},{"$f":"'Παρακολούθηση απώλειας βάρους'!C95","v":0}]
[{"$f":"IF(('Παρακολούθηση απώλειας βάρους'!C96=0)*('Παρακολούθηση απώλειας βάρους'!C95=0),TRUE)","v":true},{"$f":"IF(A75,0,IF('Παρακολούθηση απώλειας βάρους'!B96=0,'Παρακολούθηση απώλειας βάρους'!B95+5,'Παρακολούθηση απώλειας βάρους'!B96))","v":"00:00:00"},{"$f":"'Παρακολούθηση απώλειας βάρους'!C96","v":0}]
[{"$f":"IF(('Παρακολούθηση απώλειας βάρους'!C97=0)*('Παρακολούθηση απώλειας βάρους'!C96=0),TRUE)","v":true},{"$f":"IF(A76,0,IF('Παρακολούθηση απώλειας βάρους'!B97=0,'Παρακολούθηση απώλειας βάρους'!B96+5,'Παρακολούθηση απώλειας βάρους'!B97))","v":"00:00:00"},{"$f":"'Παρακολούθηση απώλειας βάρους'!C97","v":0}]
[{"$f":"IF(('Παρακολούθηση απώλειας βάρους'!C98=0)*('Παρακολούθηση απώλειας βάρους'!C97=0),TRUE)","v":true},{"$f":"IF(A77,0,IF('Παρακολούθηση απώλειας βάρους'!B98=0,'Παρακολούθηση απώλειας βάρους'!B97+5,'Παρακολούθηση απώλειας βάρους'!B98))","v":"00:00:00"},{"$f":"'Παρακολούθηση απώλειας βάρους'!C98","v":0}]
[{"$f":"IF(('Παρακολούθηση απώλειας βάρους'!C99=0)*('Παρακολούθηση απώλειας βάρους'!C98=0),TRUE)","v":true},{"$f":"IF(A78,0,IF('Παρακολούθηση απώλειας βάρους'!B99=0,'Παρακολούθηση απώλειας βάρους'!B98+5,'Παρακολούθηση απώλειας βάρους'!B99))","v":"00:00:00"},{"$f":"'Παρακολούθηση απώλειας βάρους'!C99","v":0}]
[{"$f":"IF(('Παρακολούθηση απώλειας βάρους'!C100=0)*('Παρακολούθηση απώλειας βάρους'!C99=0),TRUE)","v":true},{"$f":"IF(A79,0,IF('Παρακολούθηση απώλειας βάρους'!B100=0,'Παρακολούθηση απώλειας βάρους'!B99+5,'Παρακολούθηση απώλειας βάρους'!B100))","v":"00:00:00"},{"$f":"'Παρακολούθηση απώλειας βάρους'!C100","v":0}]
[{"$f":"IF(('Παρακολούθηση απώλειας βάρους'!C101=0)*('Παρακολούθηση απώλειας βάρους'!C100=0),TRUE)","v":true},{"$f":"IF(A80,0,IF('Παρακολούθηση απώλειας βάρους'!B101=0,'Παρακολούθηση απώλειας βάρους'!B100+5,'Παρακολούθηση απώλειας βάρους'!B101))","v":"00:00:00"},{"$f":"'Παρακολούθηση απώλειας βάρους'!C101","v":0}]
[{"$f":"IF(('Παρακολούθηση απώλειας βάρους'!C102=0)*('Παρακολούθηση απώλειας βάρους'!C101=0),TRUE)","v":true},{"$f":"IF(A81,0,IF('Παρακολούθηση απώλειας βάρους'!B102=0,'Παρακολούθηση απώλειας βάρους'!B101+5,'Παρακολούθηση απώλειας βάρους'!B102))","v":"00:00:00"},{"$f":"'Παρακολούθηση απώλειας βάρους'!C102","v":0}]
[{"$f":"IF(('Παρακολούθηση απώλειας βάρους'!C103=0)*('Παρακολούθηση απώλειας βάρους'!C102=0),TRUE)","v":true},{"$f":"IF(A82,0,IF('Παρακολούθηση απώλειας βάρους'!B103=0,'Παρακολούθηση απώλειας βάρους'!B102+5,'Παρακολούθηση απώλειας βάρους'!B103))","v":"00:00:00"},{"$f":"'Παρακολούθηση απώλειας βάρους'!C103","v":0}]
[{"$f":"IF(('Παρακολούθηση απώλειας βάρους'!C104=0)*('Παρακολούθηση απώλειας βάρους'!C103=0),TRUE)","v":true},{"$f":"IF(A83,0,IF('Παρακολούθηση απώλειας βάρους'!B104=0,'Παρακολούθηση απώλειας βάρους'!B103+5,'Παρακολούθηση απώλειας βάρους'!B104))","v":"00:00:00"},{"$f":"'Παρακολούθηση απώλειας βάρους'!C104","v":0}]
[{"$f":"IF(('Παρακολούθηση απώλειας βάρους'!C105=0)*('Παρακολούθηση απώλειας βάρους'!C104=0),TRUE)","v":true},{"$f":"IF(A84,0,IF('Παρακολούθηση απώλειας βάρους'!B105=0,'Παρακολούθηση απώλειας βάρους'!B104+5,'Παρακολούθηση απώλειας βάρους'!B105))","v":"00:00:00"},{"$f":"'Παρακολούθηση απώλειας βάρους'!C105","v":0}]
[{"$f":"IF(('Παρακολούθηση απώλειας βάρους'!C106=0)*('Παρακολούθηση απώλειας βάρους'!C105=0),TRUE)","v":true},{"$f":"IF(A85,0,IF('Παρακολούθηση απώλειας βάρους'!B106=0,'Παρακολούθηση απώλειας βάρους'!B105+5,'Παρακολούθηση απώλειας βάρους'!B106))","v":"00:00:00"},{"$f":"'Παρακολούθηση απώλειας βάρους'!C106","v":0}]
[{"$f":"IF(('Παρακολούθηση απώλειας βάρους'!C107=0)*('Παρακολούθηση απώλειας βάρους'!C106=0),TRUE)","v":true},{"$f":"IF(A86,0,IF('Παρακολούθηση απώλειας βάρους'!B107=0,'Παρακολούθηση απώλειας βάρους'!B106+5,'Παρακολούθηση απώλειας βάρους'!B107))","v":"00:00:00"},{"$f":"'Παρακολούθηση απώλειας βάρους'!C107","v":0}]
[{"$f":"IF(('Παρακολούθηση απώλειας βάρους'!C108=0)*('Παρακολούθηση απώλειας βάρους'!C107=0),TRUE)","v":true},{"$f":"IF(A87,0,IF('Παρακολούθηση απώλειας βάρους'!B108=0,'Παρακολούθηση απώλειας βάρους'!B107+5,'Παρακολούθηση απώλειας βάρους'!B108))","v":"00:00:00"},{"$f":"'Παρακολούθηση απώλειας βάρους'!C108","v":0}]
[{"$f":"IF(('Παρακολούθηση απώλειας βάρους'!C109=0)*('Παρακολούθηση απώλειας βάρους'!C108=0),TRUE)","v":true},{"$f":"IF(A88,0,IF('Παρακολούθηση απώλειας βάρους'!B109=0,'Παρακολούθηση απώλειας βάρους'!B108+5,'Παρακολούθηση απώλειας βάρους'!B109))","v":"00:00:00"},{"$f":"'Παρακολούθηση απώλειας βάρους'!C109","v":0}]
[{"$f":"IF(('Παρακολούθηση απώλειας βάρους'!C110=0)*('Παρακολούθηση απώλειας βάρους'!C109=0),TRUE)","v":true},{"$f":"IF(A89,0,IF('Παρακολούθηση απώλειας βάρους'!B110=0,'Παρακολούθηση απώλειας βάρους'!B109+5,'Παρακολούθηση απώλειας βάρους'!B110))","v":"00:00:00"},{"$f":"'Παρακολούθηση απώλειας βάρους'!C110","v":0}]
[{"$f":"IF(('Παρακολούθηση απώλειας βάρους'!C111=0)*('Παρακολούθηση απώλειας βάρους'!C110=0),TRUE)","v":true},{"$f":"IF(A90,0,IF('Παρακολούθηση απώλειας βάρους'!B111=0,'Παρακολούθηση απώλειας βάρους'!B110+5,'Παρακολούθηση απώλειας βάρους'!B111))","v":"00:00:00"},{"$f":"'Παρακολούθηση απώλειας βάρους'!C111","v":0}]
[{"$f":"IF(('Παρακολούθηση απώλειας βάρους'!C112=0)*('Παρακολούθηση απώλειας βάρους'!C111=0),TRUE)","v":true},{"$f":"IF(A91,0,IF('Παρακολούθηση απώλειας βάρους'!B112=0,'Παρακολούθηση απώλειας βάρους'!B111+5,'Παρακολούθηση απώλειας βάρους'!B112))","v":"00:00:00"},{"$f":"'Παρακολούθηση απώλειας βάρους'!C112","v":0}]
[{"$f":"IF(('Παρακολούθηση απώλειας βάρους'!C113=0)*('Παρακολούθηση απώλειας βάρους'!C112=0),TRUE)","v":true},{"$f":"IF(A92,0,IF('Παρακολούθηση απώλειας βάρους'!B113=0,'Παρακολούθηση απώλειας βάρους'!B112+5,'Παρακολούθηση απώλειας βάρους'!B113))","v":"00:00:00"},{"$f":"'Παρακολούθηση απώλειας βάρους'!C113","v":0}]
[{"$f":"IF(('Παρακολούθηση απώλειας βάρους'!C114=0)*('Παρακολούθηση απώλειας βάρους'!C113=0),TRUE)","v":true},{"$f":"IF(A93,0,IF('Παρακολούθηση απώλειας βάρους'!B114=0,'Παρακολούθηση απώλειας βάρους'!B113+5,'Παρακολούθηση απώλειας βάρους'!B114))","v":"00:00:00"},{"$f":"'Παρακολούθηση απώλειας βάρους'!C114","v":0}]
[{"$f":"IF(('Παρακολούθηση απώλειας βάρους'!C115=0)*('Παρακολούθηση απώλειας βάρους'!C114=0),TRUE)","v":true},{"$f":"IF(A94,0,IF('Παρακολούθηση απώλειας βάρους'!B115=0,'Παρακολούθηση απώλειας βάρους'!B114+5,'Παρακολούθηση απώλειας βάρους'!B115))","v":"00:00:00"},{"$f":"'Παρακολούθηση απώλειας βάρους'!C115","v":0}]
[{"$f":"IF(('Παρακολούθηση απώλειας βάρους'!C116=0)*('Παρακολούθηση απώλειας βάρους'!C115=0),TRUE)","v":true},{"$f":"IF(A95,0,IF('Παρακολούθηση απώλειας βάρους'!B116=0,'Παρακολούθηση απώλειας βάρους'!B115+5,'Παρακολούθηση απώλειας βάρους'!B116))","v":"00:00:00"},{"$f":"'Παρακολούθηση απώλειας βάρους'!C116","v":0}]
[{"$f":"IF(('Παρακολούθηση απώλειας βάρους'!C117=0)*('Παρακολούθηση απώλειας βάρους'!C116=0),TRUE)","v":true},{"$f":"IF(A96,0,IF('Παρακολούθηση απώλειας βάρους'!B117=0,'Παρακολούθηση απώλειας βάρους'!B116+5,'Παρακολούθηση απώλειας βάρους'!B117))","v":"00:00:00"},{"$f":"'Παρακολούθηση απώλειας βάρους'!C117","v":0}]
[{"$f":"IF(('Παρακολούθηση απώλειας βάρους'!C118=0)*('Παρακολούθηση απώλειας βάρους'!C117=0),TRUE)","v":true},{"$f":"IF(A97,0,IF('Παρακολούθηση απώλειας βάρους'!B118=0,'Παρακολούθηση απώλειας βάρους'!B117+5,'Παρακολούθηση απώλειας βάρους'!B118))","v":"00:00:00"},{"$f":"'Παρακολούθηση απώλειας βάρους'!C118","v":0}]
[{"$f":"IF(('Παρακολούθηση απώλειας βάρους'!C119=0)*('Παρακολούθηση απώλειας βάρους'!C118=0),TRUE)","v":true},{"$f":"IF(A98,0,IF('Παρακολούθηση απώλειας βάρους'!B119=0,'Παρακολούθηση απώλειας βάρους'!B118+5,'Παρακολούθηση απώλειας βάρους'!B119))","v":"00:00:00"},{"$f":"'Παρακολούθηση απώλειας βάρους'!C119","v":0}]
[{"$f":"IF(('Παρακολούθηση απώλειας βάρους'!C120=0)*('Παρακολούθηση απώλειας βάρους'!C119=0),TRUE)","v":true},{"$f":"IF(A99,0,IF('Παρακολούθηση απώλειας βάρους'!B120=0,'Παρακολούθηση απώλειας βάρους'!B119+5,'Παρακολούθηση απώλειας βάρους'!B120))","v":"00:00:00"},{"$f":"'Παρακολούθηση απώλειας βάρους'!C120","v":0}]
[{"$f":"IF(('Παρακολούθηση απώλειας βάρους'!C121=0)*('Παρακολούθηση απώλειας βάρους'!C120=0),TRUE)","v":true},{"$f":"IF(A100,0,IF('Παρακολούθηση απώλειας βάρους'!B121=0,'Παρακολούθηση απώλειας βάρους'!B120+5,'Παρακολούθηση απώλειας βάρους'!B121))","v":"00:00:00"},{"$f":"'Παρακολούθηση απώλειας βάρους'!C121","v":0}]
[{"$f":"IF(('Παρακολούθηση απώλειας βάρους'!C122=0)*('Παρακολούθηση απώλειας βάρους'!C121=0),TRUE)","v":true},{"$f":"IF(A101,0,IF('Παρακολούθηση απώλειας βάρους'!B122=0,'Παρακολούθηση απώλειας βάρους'!B121+5,'Παρακολούθηση απώλειας βάρους'!B122))","v":"00:00:00"},{"$f":"'Παρακολούθηση απώλειας βάρους'!C122","v":0}]
[{"$f":"IF(('Παρακολούθηση απώλειας βάρους'!C123=0)*('Παρακολούθηση απώλειας βάρους'!C122=0),TRUE)","v":true},{"$f":"IF(A102,0,IF('Παρακολούθηση απώλειας βάρους'!B123=0,'Παρακολούθηση απώλειας βάρους'!B122+5,'Παρακολούθηση απώλειας βάρους'!B123))","v":"00:00:00"},{"$f":"'Παρακολούθηση απώλειας βάρους'!C123","v":0}]
[{"$f":"IF(('Παρακολούθηση απώλειας βάρους'!C124=0)*('Παρακολούθηση απώλειας βάρους'!C123=0),TRUE)","v":true},{"$f":"IF(A103,0,IF('Παρακολούθηση απώλειας βάρους'!B124=0,'Παρακολούθηση απώλειας βάρους'!B123+5,'Παρακολούθηση απώλειας βάρους'!B124))","v":"00:00:00"},{"$f":"'Παρακολούθηση απώλειας βάρους'!C124","v":0}]
[{"$f":"IF(('Παρακολούθηση απώλειας βάρους'!C125=0)*('Παρακολούθηση απώλειας βάρους'!C124=0),TRUE)","v":true},{"$f":"IF(A104,0,IF('Παρακολούθηση απώλειας βάρους'!B125=0,'Παρακολούθηση απώλειας βάρους'!B124+5,'Παρακολούθηση απώλειας βάρους'!B125))","v":"00:00:00"},{"$f":"'Παρακολούθηση απώλειας βάρους'!C125","v":0}]
[{"$f":"IF(('Παρακολούθηση απώλειας βάρους'!C126=0)*('Παρακολούθηση απώλειας βάρους'!C125=0),TRUE)","v":true},{"$f":"IF(A105,0,IF('Παρακολούθηση απώλειας βάρους'!B126=0,'Παρακολούθηση απώλειας βάρους'!B125+5,'Παρακολούθηση απώλειας βάρους'!B126))","v":"00:00:00"},{"$f":"'Παρακολούθηση απώλειας βάρους'!C126","v":0}]
[{"$f":"IF(('Παρακολούθηση απώλειας βάρους'!C127=0)*('Παρακολούθηση απώλειας βάρους'!C126=0),TRUE)","v":true},{"$f":"IF(A106,0,IF('Παρακολούθηση απώλειας βάρους'!B127=0,'Παρακολούθηση απώλειας βάρους'!B126+5,'Παρακολούθηση απώλειας βάρους'!B127))","v":"00:00:00"},{"$f":"'Παρακολούθηση απώλειας βάρους'!C127","v":0}]
[{"$f":"IF(('Παρακολούθηση απώλειας βάρους'!C128=0)*('Παρακολούθηση απώλειας βάρους'!C127=0),TRUE)","v":true},{"$f":"IF(A107,0,IF('Παρακολούθηση απώλειας βάρους'!B128=0,'Παρακολούθηση απώλειας βάρους'!B127+5,'Παρακολούθηση απώλειας βάρους'!B128))","v":"00:00:00"},{"$f":"'Παρακολούθηση απώλειας βάρους'!C128","v":0}]
[{"$f":"IF(('Παρακολούθηση απώλειας βάρους'!C129=0)*('Παρακολούθηση απώλειας βάρους'!C128=0),TRUE)","v":true},{"$f":"IF(A108,0,IF('Παρακολούθηση απώλειας βάρους'!B129=0,'Παρακολούθηση απώλειας βάρους'!B128+5,'Παρακολούθηση απώλειας βάρους'!B129))","v":"00:00:00"},{"$f":"'Παρακολούθηση απώλειας βάρους'!C129","v":0}]